[Event "Polish Youth B18 Championship 2023"]
[Site "Jastrzebia Gora"]
[Date "2023.03.12"]
[Round "1.13"]
[White "Pieczulis, Blazej"]
[Black "Kaliszuk, Kamil"]
[Result "0-1"]
[ECO "D45"]
[WhiteElo "1784"]
[BlackElo "2217"]
[Annotator "TA"]
[PlyCount "110"]
[EventDate "2023.03.11"]
[EventType "swiss"]
[EventCountry "POL"]
[SourceTitle "playchess.com"]
[Source "ChessBase"]
[SourceQuality "1"]
[TimeControl "40/5400+30:1800+30"]

{[%evp 21,110,0,11,-10,10,-39,0,-50,0,-57,0,0,-10,-28,6,-7,-3,-34,-18,-18,0,-5,23,31,4,-10,-3,-17,15,-76,-80,-147,-141,-160,-126,-129,-122,-114,-119,-120,-20,-23,-27,-37,0,0,0,-82,-85,-75,-81,-85,-75,-277,-302,-1032,-1048,-1024,-940,-12822,-12818,-9931,-8932,-5735,-5191,-1889,-1018,-1010,-1003,-975,-972,-960,-954,-945,-901,-879,-840,-842,-882,-1070,-992,-1373,-1260,-4805,-4710,-1604,-1629,-29984,-29985,-29985,-29986]} 1. d4 {[%emt 0:00:19]} d5 {[%emt 0:00:44]} 2. c4 {[%emt 0:00:31]} e6 {[%emt 0:00:14]} 3. Nf3 {[%emt 0:02:57]} c6 {[%emt 0:03:08]} 4. e3 {[%emt 0:03:03]} Nf6 {[%emt 0:00:37]} 5. Nc3 {[%emt 0:05:06]} Nbd7 {[%emt 0:02:08]} 6. Be2 {[%emt 0:05:31]} Bd6 {[%emt 0:02:22]} 7. O-O {[%emt 0:05:39]} O-O {[%emt 0:04:02]} 8. b3 {[%emt 0:03:26]} b6 {[%emt 0:02:52]} 9. Bb2 {[%emt 0:04:07]} Bb7 {[%emt 0:01:01]} 10. Bd3 {[%emt 0:02:30]} c5 {[%emt 0:09:53]} 11. cxd5 {[%emt 0:09:51]} exd5 {[%emt 0:04:41] [#]} 12. Bb5 $146 {[%emt 0:08:58] E14: Queen's Indian: Classical Variation (4 e3).} ({Predecessor:} 12. Rc1 Rc8 13. Ne2 Ne4 14. Ng3 f5 15. Qe2 Rc7 16. Rfd1 Qe7 17. Ba6 Ba8 18. Bb5 g6 19. Bxd7 Rxd7 20. Ba1 f4 21. dxc5 Bxc5 22. Nxe4 Qxe4 {0-1 Suleymenov,A (2440)-Adly,A (2588) Wch Rapid Almaty 2022 (12)}) 12... Rc8 {[%emt 0:06:26]} 13. Qd3 {[%emt 0:06:28]} (13. Qe2 $11 {is more appropriate.}) 13... Qe7 {[%emt 0:14:13][%cal Oa7a6]} (13... a6 $5 {[%cal Ra6b5]} 14. Bxd7 (14. Bxa6 c4 $17) 14... Qxd7 $15) 14. Rfd1 {[%emt 0:11:12]} (14. Qe2 $11) 14... Rfd8 {[%emt 0:05:23]} ({Black should try} 14... a6 $15 15. Bxd7 (15. Bxa6 c4 $17) 15... c4) 15. Rac1 {[%emt 0:05:55]} (15. Qe2 $11) 15... Nf8 {[%emt 0:03:46]} (15... c4 $15 16. bxc4 a6 {[%mdl 64] Deflection}) 16. dxc5 {[%emt 0:02:10]} bxc5 {[%emt 0:02:00][%cal Oa7a6]} 17. Qf5 {[%emt 0:02:09]} Rb8 {[%emt 0:07:27][%cal Od5d4]} 18. Be2 {[%emt 0:06:54]} Bc6 {[%emt 0:05:42] Prevents Nb5.} 19. Qc2 {[%emt 0:01:49]} (19. Na4 {is more complex.} Ne4 20. Nc3 g6 21. Qh3) 19... Ne6 {[%emt 0:03:00][%cal Od5d4] ...d4! would be deadly.} 20. Nb1 {[%emt 0:04:02]} Ne4 {[%emt 0:01:59][%cal Od5d4]} 21. Nbd2 {[%emt 0:00:12]} N6g5 {[%emt 0:01:57]} 22. Nxg5 {[%emt 0:00:58]} Nxg5 {[%emt 0:00:45][%cal Be4g5,Bg5e6,Be6f4][%mdl 32]} (22... Qxg5 23. f4 Qe7 24. Nxe4 dxe4 25. Rxd6 Rxd6 26. Be5 $16 (26. Qxc5 Rbd8 $14)) 23. h4 {[%emt 0:03:14]} Ne6 {[%emt 0:00:56]} 24. Nf3 {[%emt 0:00:05]} d4 {[%emt 0:05:54]} 25. Qf5 {[%emt 0:04:39]} (25. exd4 $11 {keeps the balance.} Bf4 26. Ra1) 25... g6 $17 {[%emt 0:02:27]} 26. Qg4 {[%emt 0:00:24] [#]} (26. Qc2 $142) 26... h5 $1 {[%emt 0:00:59]} 27. Qh3 {[%emt 0:00:05]} dxe3 {[%emt 0:00:21]} 28. fxe3 {[%emt 0:00:27] [#]} Nf4 $1 {[%emt 0:01:06][%mdl 512]} 29. exf4 {[%emt 0:00:01] And now Ne5 would win.} Qxe2 {[%emt 0:00:02]} 30. Bf6 {[%emt 0:00:14]} Qe3+ {[%emt 0:03:07]} (30... Bxf4 $17 31. Re1 Qxa2 32. Bxd8 Rxd8) 31. Kh1 $11 {[%emt 0:00:08]} Re8 $36 {[%emt 0:00:58][%mdl 2048] Black has some pressure.} 32. Bg5 {[%emt 0:01:58] Hoping for f5.} f6 {[%emt 0:03:38]} ({Don't play} 32... Bxf4 $6 33. Re1 Bxg5 34. Rxe3 Bxe3 35. Re1) 33. Re1 {[%emt 0:00:57]} Qf2 {[%emt 0:00:11]} 34. Rf1 {[%emt 0:00:05]} (34. Re6 $11 Bxf3 35. Rxf6) 34... Qb2 $17 {[%emt 0:00:39]} 35. Rb1 {[%emt 0:00:15]} Qxa2 {[%emt 0:01:00] Black is much more active.} 36. Bxf6 {[%emt 0:00:17]} Bxf4 {[%emt 0:01:13] This pair of bishops is nice.} ({Much worse is} 36... Rxb3 $6 37. Qg3 Be4 38. Ra1 $11) 37. Ra1 $2 {[%emt 0:01:07] Now White is beyond hope.} (37. Bg5 $17 Bxg5 38. Nxg5) 37... Qxb3 $19 {[%emt 0:00:55][%cal Oa7a5]} 38. Ng5 $2 {[%emt 0:01:05]} (38. Rxa7 Rb7 39. Rxb7 Qxb7 40. Re1) 38... Bxg5 {[%emt 0:00:49]} 39. Qxb3+ {[%emt 0:00:33]} Rxb3 {[%emt 0:00:09]} 40. Bxg5 {[%emt 0:00:00]} Re2 {[%emt 0:00:00] ( -> ...Rh3+)} 41. Rf3 {[%emt 0:08:54] Prevents Rh3+.} Bxf3 {[%emt 0:01:27]} 42. gxf3 {[%emt 0:00:02]} Rxf3 {[%emt 0:00:12][%mdl 4096] Endgame KRR-KRB} 43. Rb1 {[%emt 0:00:02]} Re8 {[%emt 0:00:55] White must now prevent ...Re2.} 44. Kg2 {[%emt 0:00:08]} Rf7 {[%emt 0:00:06][%cal Bf3f7,Bf7b7,Bb7b3][%mdl 32]} 45. Rc1 {[%emt 0:00:22]} Rc8 {[%emt 0:00:07]} 46. Rc4 {[%emt 0:00:06]} Rb7 {[%emt 0:00:13]} 47. Kf3 {[%emt 0:00:34]} Rb3+ {[%emt 0:00:12]} 48. Ke2 {[%emt 0:00:22]} Rb4 {[%emt 0:00:08]} 49. Rc1 {[%emt 0:00:09]} c4 {[%emt 0:00:08] aiming for ...c3.} 50. Ke3 {[%emt 0:00:16]} c3 {[%emt 0:00:09]} 51. Kd3 {[%emt 0:00:04] [#]} c2 $1 {[%emt 0:00:10]} 52. Rf1 {[%emt 0:00:15] [#]} (52. Be7 Rg4) 52... c1=Q $1 {[%emt 0:00:36]} 53. Bxc1 {[%emt 0:00:05]} Rb1 {[%emt 0:00:08]} 54. Kd2 {[%emt 0:00:12] [#]} Rbxc1 $1 {[%emt 0:00:08]} 55. Rxc1 {[%emt 0:00:06]} Rxc1 {[%emt 0:00:06] Weighted Error Value: White=0.51/Black=0.25 (precise)} 0-1

[Event "Polish Youth B18 Championship 2023"]
[Site "Jastrzebia Gora"]
[Date "2023.03.12"]
[Round "1.14"]
[White "Malik, Maciej"]
[Black "Krasniewski, Szymon"]
[Result "0-1"]
[ECO "B06"]
[WhiteElo "2163"]
[BlackElo "1771"]
[Annotator "TA"]
[PlyCount "140"]
[EventDate "2023.03.11"]
[EventType "swiss"]
[EventCountry "POL"]
[SourceTitle "playchess.com"]
[Source "ChessBase"]
[SourceQuality "1"]
[TimeControl "40/5400+30:1800+30"]

{[%evp 9,140,42,46,22,17,0,12,11,14,-16,-14,-52,-56,-106,-102,-90,-89,-97,-77,-98,-120,-164,-166,-167,-144,-226,-214,-297,-119,-129,-112,-121,-74,-80,-79,-109,-27,-48,-53,-104,0,12,23,6,0,0,0,0,0,-182,-209,-176,-91,-95,-35,-460,-283,-660,-257,-246,-254,-245,-247,-245,-237,-265,-254,-254,-173,-191,-191,-260,-169,-169,-169,-262,-262,-263,-272,-243,-268,-260,-236,-242,-242,-235,-235,-355,-314,-314,-273,-483,-483,-476,-336,-468,-351,-496,-496,-745,-739,-655,-598,-4133,-4133,-4133,-4133,-4133,-4133,-4133,-4133,-29977,-29978,-29980,-29981,-29981,-29982,-29982,-29981,-29983,-29984,-29985,-29986,-29986,-29987,-29987,-29988,-29988,-29989,-29989,-29990,-29990,-29991]} 1. e4 {[%emt 0:01:20]} g6 {[%emt 0:00:06]} 2. d4 {[%emt 0:02:33]} Bg7 {[%emt 0:00:05]} 3. Nc3 {[%emt 0:01:39]} d6 {[%emt 0:00:14]} 4. Be3 {[%emt 0:01:03]} Nd7 {[%emt 0:00:15]} 5. Be2 {[%emt 0:03:27]} a6 {[%emt 0:05:00]} 6. Nf3 {[%emt 0:09:00] B06: Modern Defence.} b5 {[%emt 0:00:31]} 7. a3 {[%emt 0:00:37]} Bb7 {[%emt 0:00:12]} 8. O-O {[%emt 0:02:24] The position is equal.} c5 {[%emt 0:03:28]} 9. d5 {[%emt 0:04:18]} Ngf6 10. Nd2 {[%emt 0:03:09]} O-O {[%emt 0:01:36]} 11. f3 {[%emt 0:07:53]} (11. Bf4 $15) 11... e6 $17 {[%emt 0:05:29]} 12. dxe6 {[%emt 0:09:14]} fxe6 {[%emt 0:00:06] [#]} 13. Nb3 $146 {[%emt 0:00:19]} ({Predecessor:} 13. Bg5 h6 14. Bh4 Qc7 15. Na2 Nh5 16. c3 g5 17. Bf2 Nf4 18. Nc1 c4 19. g3 Nh3+ {½-½ Bezak,R (1689)-Janicek,J (1595) SVK-chT3B2 1516 2015 (11.4)}) 13... Qc7 {[%emt 0:03:50]} 14. Qd2 {[%emt 0:16:29]} d5 {[%emt 0:02:33]} 15. exd5 {[%emt 0:00:23]} exd5 {[%emt 0:03:14]} ({Stronger than} 15... Nxd5 16. Nxd5 Bxd5 17. Rad1 $15) 16. Nd1 {[%emt 0:01:12]} d4 {[%emt 0:03:17]} 17. Bf2 {[%emt 0:04:33]} (17. Bg5 $17) 17... Nh5 $19 {[%emt 0:15:29]} 18. Na5 {[%emt 0:08:56]} Nf4 {[%emt 0:10:26]} (18... Be5 $19 19. g3 Bxf3) 19. Nxb7 $17 {[%emt 0:02:53]} Qxb7 {[%emt 0:00:37]} 20. Bd3 {[%emt 0:02:08]} Nxd3 {[%emt 0:01:02]} (20... Rae8 $142 {Threatens to win with ...c4.} 21. Bg3 Nxd3 22. cxd3 c4) 21. cxd3 {[%emt 0:01:32]} Rac8 {[%emt 0:14:13] Black is more active.} 22. a4 {[%emt 0:07:56]} Rf5 {[%emt 0:09:05]} ({Black should try} 22... Ne5 $17 {[%cal Of8f3] White must now prevent ...Rxf3!} 23. Bg3 c4) 23. axb5 {[%emt 0:00:45]} axb5 {[%emt 0:00:09][%cal Ba6b5,Bb5c4,Bc4c3][%mdl 32]} 24. Re1 {[%emt 0:01:53]} (24. b3 $15) 24... Nf8 {[%emt 0:06:56]} (24... c4 $1 $17 {aiming for ...Nc5.} 25. Qe2 Ne5 26. dxc4 bxc4) 25. b3 {[%emt 0:04:22]} Qf7 {[%emt 0:03:59]} 26. Qa2 {[%emt 0:00:16]} c4 $36 {[%emt 0:03:49][%mdl 2048] Black is pushing.} 27. bxc4 {[%emt 0:00:50]} bxc4 {[%emt 0:00:04]} 28. Qa6 {[%emt 0:01:14]} Rfc5 {[%emt 0:04:54]} 29. Nb2 $2 {[%emt 0:00:47]} (29. dxc4 $11 Qxc4 30. Qxc4+ Rxc4 31. Nb2) 29... c3 $19 {[%emt 0:00:46]} 30. Nc4 {[%emt 0:00:13] [#]} Rxc4 {[%emt 0:00:59]} (30... R5c6 $1 $19 {[%cal Rc6a6]} 31. Qa3 Rxc4 32. dxc4 Qxc4) 31. dxc4 $17 {[%emt 0:00:01]} Qxc4 {[%emt 0:00:24]} 32. Qb7 {[%emt 0:01:06][%mdl 8192] This move loses the game for White.} (32. Qxc4+ $15 Rxc4 33. Re4) 32... Rc7 {[%emt 0:00:53]} 33. Qb8 {[%emt 0:01:09]} (33. Ra4 Qxa4 34. Qxc7) 33... d3 $2 {[%emt 0:00:58]} (33... c2 {Strongly threatening ...d3.} 34. Re4 c1=Q+ 35. Rxc1 Qxc1+ 36. Be1 Bh6 37. Qb3+ Kg7) 34. Re4 $19 {[%emt 0:00:26]} Qf7 {[%emt 0:01:08][%mdl 1024] ...c2 would be deadly. Black has strong compensation.} 35. Be3 {[%emt 0:00:59]} d2 {[%emt 0:00:47]} 36. Rf4 {[%emt 0:00:41]} Qe7 {[%emt 0:01:02]} 37. Qb3+ {[%emt 0:00:05]} Kh8 {[%emt 0:00:22]} 38. Re4 {[%emt 0:00:17]} Qf7 {[%emt 0:00:35]} 39. Qc2 {[%emt 0:00:20] [#]} Rb7 $1 {[%emt 0:00:48]} 40. Rf4 {[%emt 0:00:00]} (40. Bxd2 $142 cxd2 41. Rd1) 40... Qb3 {[%emt 0:00:00]} 41. Qxb3 {[%emt 0:21:37]} Rxb3 {[%emt 0:00:34]} 42. Rc4 {[%emt 0:02:06] [#]} (42. Kf2 $142) 42... c2 $1 {[%emt 0:01:40][%mdl 512]} 43. Bxd2 {[%emt 0:00:50]} Bxa1 {[%emt 0:04:24]} 44. Rxc2 {[%emt 0:00:01]} Bd4+ {[%emt 0:00:38]} 45. Kf1 {[%emt 0:00:01]} Rb2 {[%emt 0:12:41]} 46. Rxb2 {[%emt 0:01:22]} Bxb2 {[%emt 0:00:02]} 47. Kf2 {[%emt 0:00:50]} Kg7 {[%emt 0:00:08]} 48. Be3 {[%emt 0:00:22]} (48. f4 $142) 48... Ne6 {[%emt 0:00:11] Hoping for ...Bd4.} 49. Bd2 {[%emt 0:00:01]} Kf6 {[%emt 0:00:15]} 50. g3 $2 {[%emt 0:00:22]} (50. Be1) 50... Ke5 {[%emt 0:00:15]} 51. Ke2 {[%emt 0:00:28]} Kd4 {[%emt 0:01:02]} 52. Be1 {[%emt 0:00:17]} Bc1 {[%emt 0:00:41]} 53. Ba5 {[%emt 0:02:53]} (53. Bf2+ $142 Kd5 54. Kd3) 53... Kc4 {[%emt 0:00:36]} 54. f4 {[%emt 0:01:40]} (54. h3 $142 Nd4+ 55. Kf2) 54... Nd4+ {[%emt 0:00:37]} 55. Kf2 {[%emt 0:00:03]} Kd3 {[%emt 0:00:15]} 56. Kg2 {[%emt 0:00:44]} Ke2 {[%emt 0:00:31]} 57. Bc7 {[%emt 0:00:29]} Nf5 {[%emt 0:02:26]} 58. g4 {[%emt 0:01:34]} Ne3+ {[%emt 0:01:30]} 59. Kg3 {[%emt 0:00:01]} Bd2 {[%emt 0:07:33] ( -> ...Be1+)} 60. Kh4 {[%emt 0:03:04]} Nd5 {[%emt 0:01:16][%csl LRc7,LRf4][%mdl 64] Discovered Attack. Black mates.} 61. Kg5 {[%emt 0:03:14]} Nxc7 {[%emt 0:00:12]} 62. Kh6 {[%emt 0:00:01]} Bxf4+ {[%emt 0:00:48]} 63. g5 {[%emt 0:00:09]} Nd5 {[%emt 0:02:03]} 64. h4 {[%emt 0:00:52]} Ne7 {[%emt 0:00:51]} 65. h5 {[%emt 0:00:53]} Nf5+ {[%emt 0:00:25]} 66. Kxh7 {[%emt 0:00:06]} gxh5 {[%emt 0:00:04]} ({And not} 66... Bxg5 67. Kxg6 Bh6 68. Kxf5 $11) 67. Kg6 {[%emt 0:00:08]} Ng3 {[%emt 0:01:11]} 68. Kf6 {[%emt 0:00:22]} h4 {[%emt 0:00:13]} 69. g6 {[%emt 0:00:01]} Bh6 {[%emt 0:00:10]} 70. g7 {[%emt 0:01:58] [#]} Bxg7+ $1 {[%emt 0:00:04] Weighted Error Value: White=0.66/Black=0.34} 0-1

[Event "Polish Youth B18 Championship 2023"]
[Site "Jastrzebia Gora"]
[Date "2023.03.12"]
[Round "1.15"]
[White "Kossowski, Pawel"]
[Black "Grzesik, Gracjan"]
[Result "1/2-1/2"]
[ECO "B92"]
[WhiteElo "1766"]
[BlackElo "2149"]
[Annotator "TA"]
[PlyCount "61"]
[EventDate "2023.03.11"]
[EventType "swiss"]
[EventCountry "POL"]
[SourceTitle "playchess.com"]
[Source "ChessBase"]
[SourceQuality "1"]
[TimeControl "40/5400+30:1800+30"]

{[%evp 26,61,8,16,30,23,43,43,41,44,56,56,60,66,72,62,67,66,70,37,54,61,59,54,56,60,70,56,62,44,47,56,57,0,33,0,33,0]} 1. e4 c5 2. Nf3 d6 3. d4 cxd4 4. Nxd4 Nf6 5. Nc3 a6 6. Be2 e5 7. Nb3 Be7 8. O-O O-O 9. Be3 Be6 10. Qd2 Nbd7 11. a4 Qc7 12. a5 Rac8 13. Rfd1 Rfd8 14. Qe1 Qc6 {B92: Sicilian Najdorf: 6 Be2.} 15. Bf3 h6 16. Nc1 {[%cal Bb3c1,Bc1a2,Ba2b4,Bb4d5][%mdl 32]} Nc5 17. N1a2 {[#]} Ra8 $146 ({Predecessor:} 17... Qd7 18. Nb4 Qe8 19. Nbd5 Nxd5 20. Nxd5 Bxd5 21. Rxd5 Ne6 22. c3 Kh8 23. Bg4 Rc6 24. Bg5 f5 {1-0 Thipsay,P (2485)-Shyam,S (2302) New Delhi Parsvnath op 5th 2007 (7)}) 18. Nb4 Qc7 19. Nbd5 Nxd5 20. Nxd5 Bxd5 21. Rxd5 Nd7 22. Qd2 {White is more active.} Rac8 23. c3 Nf6 24. Bb6 Qd7 25. Rd3 Rf8 26. g3 Qc6 27. Re1 Nd7 28. Be3 Nf6 {Inhibits Bg4.} 29. Bb6 Nd7 $1 30. Be3 Nf6 {Prevents Bg4} 31. Bb6 {Weighted Error Value: White=0.10 (very precise) /Black=0.05 (flawless)} 1/2-1/2

[Event "Polish Youth B18 Championship 2023"]
[Site "Jastrzebia Gora"]
[Date "2023.03.12"]
[Round "1.16"]
[White "Backiel, Hubert"]
[Black "Wesolek, Krzysztof"]
[Result "1-0"]
[ECO "C80"]
[WhiteElo "2127"]
[BlackElo "1765"]
[Annotator "TA"]
[PlyCount "73"]
[EventDate "2023.03.11"]
[EventType "swiss"]
[EventCountry "POL"]
[SourceTitle "playchess.com"]
[Source "ChessBase"]
[SourceQuality "1"]
[TimeControl "40/5400+30:1800+30"]

{[%evp 18,73,23,8,27,20,14,14,14,12,73,92,116,110,206,112,183,183,183,181,177,172,172,166,180,185,205,208,206,213,229,214,234,231,245,237,247,236,258,249,280,271,303,314,572,569,545,479,554,560,549,543,783,785,756,754,754,737]} 1. e4 {[%emt 0:00:03]} e5 {[%emt 0:00:05]} 2. Nf3 {[%emt 0:00:04]} Nc6 {[%emt 0:00:12]} 3. Bb5 {[%emt 0:00:11]} a6 {[%emt 0:00:07]} 4. Ba4 {[%emt 0:00:03]} Nf6 {[%emt 0:00:05]} 5. O-O {[%emt 0:00:06]} Nxe4 {[%emt 0:00:05]} 6. d4 {[%emt 0:03:15]} b5 {[%emt 0:00:06]} 7. Bb3 {[%emt 0:00:29]} d5 {[%emt 0:00:10]} 8. dxe5 {[%emt 0:00:48]} Be6 {[%emt 0:00:09]} 9. Be3 {[%emt 0:03:23]} Bc5 {[%emt 0:10:29]} 10. Qe2 {[%emt 0:06:01]} Na5 {[%emt 0:30:58] C81: Open Ruy Lopez: Keres Variation (9 Qe2).} 11. Rd1 {[%emt 0:10:25]} Bxe3 {[%emt 0:07:57]} 12. Qxe3 {[%emt 0:00:06]} c5 {[%emt 0:04:19] [#] Prevents Nd4. Threatens to win with ...c4. The position is equal.} 13. c3 {[%emt 0:00:04] [#]} Nxb3 $146 {[%emt 0:02:05]} (13... O-O $11 {keeps the balance.}) ({Predecessor:} 13... O-O 14. Ne1 c4 15. Bc2 f5 16. exf6 Qxf6 17. f3 Nd6 18. Qb6 Qd8 19. Qe3 Bf7 {1-0 Da Costa,P-Costa Neto,P BRA CBI-A corr 1980 (1)}) 14. axb3 $16 {[%emt 0:00:02][%cal Oc3c4]} Qb6 {[%emt 0:08:52]} 15. Ne1 {[%emt 0:22:46] Strongly threatening f3.} h6 {[%emt 0:06:41]} (15... f5 $16 {was worth a try.}) 16. Nd3 {[%emt 0:05:53]} (16. f3 $18 Ng5 17. b4) 16... Rc8 {[%emt 0:16:31]} (16... Qc7 $16) 17. b4 $18 {[%emt 0:02:27]} Qc6 {[%emt 0:00:09]} 18. bxc5 {[%emt 0:05:58]} Nxc5 {[%emt 0:02:11]} 19. Nxc5 {[%emt 0:00:43]} Qxc5 {[%emt 0:00:01] Black is weak on the dark squares} 20. Qxc5 {[%emt 0:00:11]} ({Resist} 20. Rxa6 Qxe3 21. fxe3 O-O $16) 20... Rxc5 {[%emt 0:00:18]} 21. Rxa6 {[%emt 0:00:02]} Kd7 {[%emt 0:01:51]} 22. Na3 {[%emt 0:05:27]} Rb8 {[%emt 0:04:01]} 23. Nc2 {[%emt 0:05:15]} Rb7 {[%emt 0:01:12]} 24. Nb4 {[%emt 0:00:52]} Ke7 {[%emt 0:00:52]} 25. f3 {[%emt 0:02:14]} g6 {[%emt 0:01:35]} 26. Kf2 {[%emt 0:00:07]} h5 {[%emt 0:01:21]} 27. Rd4 {[%emt 0:00:38]} Rc4 {[%emt 0:01:05]} 28. Ke3 {[%emt 0:00:28]} ({Less strong is} 28. Nxd5+ Bxd5 29. Rxd5 b4 $16) 28... Rc5 {[%emt 0:00:32]} 29. Rd6 {[%emt 0:04:10]} Rd7 {[%emt 0:00:22]} 30. Rb6 {[%emt 0:00:08]} f6 $2 {[%emt 0:00:35] [#]} (30... Rdc7 {keeps fighting.} 31. h3 Rc8) 31. exf6+ {[%emt 0:00:21] White is clearly winning.} Kxf6 {[%emt 0:00:02]} 32. Nd3 {[%emt 0:00:19]} Rc8 {[%emt 0:01:00]} 33. Rf4+ {[%emt 0:01:14]} Ke7 {[%emt 0:00:26]} 34. Ne5 {[%emt 0:00:05]} g5 {[%emt 0:00:25]} 35. Ng6+ {[%emt 0:00:20]} Kd8 {[%emt 0:00:04]} 36. Rf8+ {[%emt 0:00:08]} Kc7 {[%emt 0:00:08]} 37. Rxe6 {[%emt 0:00:07] Black got outplayed after the opening.   Weighted Error Value: White=0.10 (very precise) /Black=0.38} 1-0

[Event "Polish Youth B18 Championship 2023"]
[Site "Jastrzebia Gora"]
[Date "2023.03.12"]
[Round "1.17"]
[White "Biesiadecki, Adam"]
[Black "Kolodziejski, Piotr"]
[Result "1-0"]
[ECO "E17"]
[WhiteElo "1761"]
[BlackElo "2118"]
[Annotator "TA"]
[PlyCount "77"]
[EventDate "2023.03.11"]
[EventType "swiss"]
[EventCountry "POL"]
[SourceTitle "playchess.com"]
[Source "ChessBase"]
[SourceQuality "1"]
[TimeControl "40/5400+30:1800+30"]

{[%evp 13,76,14,39,33,32,36,40,31,37,31,30,30,29,25,36,16,40,36,58,45,44,0,12,6,68,13,14,23,31,18,18,29,41,0,0,0,0,0,0,0,0,0,0,-54,-55,-81,0,0,0,0,0,0,41,0,278,270,263,228,583,578,29981,29982,29994,29995,29995]} 1. d4 {[%emt 0:00:04]} Nf6 {[%emt 0:00:06]} 2. c4 {[%emt 0:00:06]} e6 {[%emt 0:00:05]} 3. Nf3 {[%emt 0:00:05]} b6 {[%emt 0:00:23]} 4. g3 {[%emt 0:00:13]} Bb7 {[%emt 0:01:07]} 5. Bg2 {[%emt 0:00:07]} Be7 {[%emt 0:01:07]} 6. O-O {[%emt 0:00:10]} O-O {[%emt 0:01:07]} 7. Re1 {[%emt 0:00:12]} c5 {[%emt 0:10:03] [#]} 8. d5 $1 {[%emt 0:01:31] E17: Queen's Indian: 4 g3 Bb7 5 Bg2 Be7.} exd5 {[%emt 0:01:03]} 9. Nh4 {[%emt 0:00:16]} Ne4 {[%emt 0:08:57]} 10. cxd5 {[%emt 0:00:55] White is slightly better.} Bxh4 {[%emt 0:01:39]} (10... Nd6 11. Bf4 $16) 11. Bxe4 {[%emt 0:00:16]} Bf6 {[%emt 0:00:57]} 12. Nc3 {[%emt 0:01:40]} d6 {[%emt 0:05:02] Black is weak on the light squares} 13. Bf4 {[%emt 0:05:28]} Re8 {[%emt 0:02:01] White must now prevent ...Bxc3.} 14. Bg2 {[%emt 0:02:57]} a6 {[%emt 0:04:16]} 15. a4 {[%emt 0:01:20]} Qe7 {[%emt 0:01:12] [#]} 16. Qb3 $146 {[%emt 0:07:01]} (16. Ne4 $5 {[%cal Re4d6]} Be5 17. Bxe5 Qxe5 18. Qd2 $14 (18. f4 Qe7 $14)) ({Predecessor:} 16. Ne4 Be5 17. Bxe5 Qxe5 18. f4 Qe7 19. Qb3 Nd7 20. Nd2 Qf6 21. e3 Rab8 22. Nc4 {½-½ Khismatullin,D (2654)-Ponkratov,P (2604) RUS GP rap Khanty-Mansiysk rapid 2015 (5)}) 16... Nd7 {[%emt 0:17:24]} 17. Bh3 {[%emt 0:13:09]} Ne5 {[%emt 0:03:17]} 18. Ne4 {[%emt 0:14:07]} Reb8 {[%emt 0:03:06]} (18... Ng6 $11 19. Nxf6+ Qxf6) 19. Rad1 {[%emt 0:03:59] White is much more active. The black rooks are badly placed.} (19. Qxb6 $2 {perishes.} Bc8 20. Qxd6 (20. Nxf6+ $2 gxf6 21. Qa5 Bxh3 $19) 20... Qxd6 21. Nxd6 Bxh3 $19) (19. Bg2 $14) 19... b5 $11 {[%emt 0:03:46]} 20. Nxf6+ {[%emt 0:02:47]} Qxf6 {[%emt 0:02:18]} 21. Bxe5 {[%emt 0:00:53]} Qxe5 {[%emt 0:01:48]} 22. e4 {[%emt 0:04:33][%cal Be2e4,Be4e5,Be5e6][%mdl 32]} bxa4 {[%emt 0:05:15]} 23. Qc2 {[%emt 0:00:45]} Bc8 {[%emt 0:07:51]} 24. Bxc8 {[%emt 0:01:01]} Rxc8 {[%emt 0:04:58]} 25. f4 {[%emt 0:00:42]} Qe8 {[%emt 0:00:43]} 26. e5 {[%emt 0:01:12]} Rab8 {[%emt 0:03:52]} 27. e6 {[%emt 0:07:14]} f6 {[%emt 0:01:48]} 28. Ra1 {[%emt 0:13:48]} (28. Rd2 $11) 28... Rb4 $15 {[%emt 0:01:08]} 29. Ra3 {[%emt 0:04:04]} Rc7 {[%emt 0:00:39]} ({Black should play} 29... Qb5 $17) 30. Re4 $11 {[%emt 0:02:53]} Rcb7 {[%emt 0:01:23]} 31. Rxb4 {[%emt 0:01:34]} Rxb4 {[%emt 0:00:11][%mdl 4096] Endgame KQR-KQR} 32. Re3 {[%emt 0:02:23]} g6 {[%emt 0:02:00]} 33. e7 $40 {[%emt 0:01:09][%mdl 1152] Re1 would be deadly. White has compensation. White is up to no good.} (33. Qe2 $5 {[%cal Re2a6]}) 33... Rb7 $2 {[%emt 0:04:17][%mdl 8192] [#]} (33... f5 $11 {and Black has nothing to worry.}) 34. Qe4 $1 $18 {[%emt 0:00:13]} Kg7 {[%emt 0:01:03] [#]} 35. Qe6 $1 {[%emt 0:01:23]} Rb6 {[%emt 0:01:00]} (35... Rxb2 36. Qxd6 a3 37. Rxa3 (37. Qxa6 $2 {too greedy.} a2 $19) 37... Re2) 36. g4 {[%emt 0:00:17][%cal Bg3g4,Bg4g5,Bg5h6][%mdl 32]} h6 {[%emt 0:00:34] [#]} 37. g5 $1 {[%emt 0:00:22][%mdl 512] White mates.} f5 {[%emt 0:00:52]} (37... fxg5 38. fxg5) 38. Qf6+ {[%emt 0:00:17]} Kh7 {[%emt 0:00:06]} 39. gxh6 {[%emt 0:00:23] Weighted Error Value: White=0.11 (very precise) /Black=0.56} 1-0